bitfinex/quotes_SOLUSD_20251226
["timestamp","ask_amount","ask_price","bid_price","bid_amount"]
[1766710128033,0.68,120.03,120.0,4.29330234]
[1766710129941,128.44946195,120.06,120.01,3.60330234]
[1766710130242,6.26740524,120.05,120.01,4.29330234]
[1766710130447,0.68,120.05,120.01,4.29330234]
[1766710132356,0.68,120.04,120.01,0.69]
[1766710132740,0.68,120.04,120.0,3.60330234]
[1766710132975,0.68,120.04,120.0,4.29330234]
[1766710133162,0.68,120.03,119.99,4.29330234]
[1766710133953,0.68,120.03,120.0,0.69]
[1766710135152,0.68,120.03,119.99,4.29330234]
[1766710135653,0.68,120.03,120.0,0.69]
[1766710136375,0.68,120.03,120.0,4.29330234]
[1766710141583,0.68,120.03,120.0,0.69]
[1766710141792,0.68,120.03,120.0,4.29330234]
[1766710144089,0.68,120.03,119.99,4.29330234]
[1766710144263,4.28330234,120.04,120.0,0.69]
[1766710144465,5.58909217,120.03,120.0,0.69]
[1766710144791,5.58909217,120.03,120.01,0.69]
[1766710145485,4.28330234,120.04,120.01,0.69]
[1766710146111,5.59286591,120.03,120.01,0.69]
[1766710146671,0.68,120.02,119.98,3.60330234]
[1766710147095,0.68,120.02,119.97,24.24503721]
[1766710147096,0.68,120.0,119.97,0.69]
[1766710149694,0.68,120.0,119.97,4.29330234]
[1766710151112,0.68,120.02,119.99,4.29330234]
[1766710151474,0.68,120.02,119.99,0.69]
[1766710151673,0.68,120.02,119.99,4.29330234]
[1766710155598,0.68,120.02,119.99,0.69]
[1766710155803,0.68,120.02,119.99,4.29330234]
[1766710156899,0.68,120.02,119.99,12.62727508]
[1766710157476,15.94,120.03,120.0,0.69]
[1766710157681,0.72,120.03,120.0,4.29330234]
[1766710159903,0.72,120.03,120.0,12.62639746]
[1766710160693,10.43767296,120.04,120.01,4.29330234]
[1766710160901,11.15767296,120.04,120.01,4.29330234]
[1766710163115,0.72,120.03,120.0,12.62639746]
[1766710164526,0.72,120.03,120.0,4.29330234]
[1766710165603,10.43767296,120.04,120.0,3.60330234]
[1766710165805,5.58695078,120.03,120.01,4.29330234]
[1766710167319,11.15767296,120.04,120.01,4.29330234]
[1766710167719,0.72,120.01,119.97,0.69]
[1766710167917,3.60330234,120.01,119.97,4.29330234]
[1766710168132,0.72,120.0,119.96,8.33593557]
[1766710168303,0.72,120.0,119.96,11.93923791]
[1766710168833,0.72,120.0,119.96,12.62923791]
[1766710170031,0.72,119.99,119.95,11.33464194]
[1766710170322,0.72,119.99,119.95,2.99790913]
[1766710170738,17.52790913,119.99,119.94,2.30790913]
[1766710170942,17.52790913,119.99,119.93,0.69]
[1766710170943,0.72,119.97,119.93,0.69]
[1766710171143,0.72,119.95,119.91,0.69]
[1766710171436,2.30790913,119.96,119.93,0.69]
[1766710171619,5.58325908,119.95,119.93,0.69]
[1766710172239,0.72,119.95,119.91,2.99790913]
[1766710172839,3.02790913,119.95,119.91,0.69]
[1766710173535,0.72,119.94,119.91,2.30790913]
[1766710175729,0.72,119.94,119.9,2.99790913]
[1766710175923,0.72,119.94,119.89,8.34084292]
[1766710175924,0.72,119.93,119.89,11.33881508]
[1766710176839,0.72,119.93,119.89,10.64881508]
[1766710177024,104.7,119.99,119.92,2.30790913]
[1766710177225,0.72,119.98,119.93,0.69]
[1766710177425,0.72,119.95,119.9,18.77740976]
[1766710177634,0.72,119.94,119.91,0.69]
[1766710177941,0.72,119.94,119.91,11.33739025]
[1766710179649,0.72,119.94,119.91,10.64739025]
[1766710179835,0.72,119.94,119.91,11.33739025]
[1766710185866,0.72,119.94,119.91,9.02948112]
[1766710186065,0.72,119.94,119.91,11.33739025]
[1766710188172,0.72,119.94,119.91,9.02948112]
[1766710188376,0.72,119.94,119.91,11.33739025]
[1766710188543,0.7,119.97,119.93,3.02790913]
[1766710188870,3.00790913,119.97,119.93,3.02790913]
[1766710189048,0.7,119.96,119.92,2.30790913]
[1766710189247,0.7,119.95,119.92,0.72]
[1766710189952,0.7,119.95,119.92,3.02790913]
[1766710190153,0.7,119.95,119.92,11.36635074]
[1766710190358,0.7,119.95,119.92,9.05844161]
[1766710190663,0.7,119.95,119.92,11.36635074]
[1766710192966,3.00790913,119.97,119.93,3.02790913]
[1766710193171,0.7,119.96,119.93,3.02790913]
[1766710193552,25.65767296,119.98,119.93,2.30790913]
[1766710193553,27.96558209,119.98,119.93,2.30790913]
[1766710193871,25.65767296,119.98,119.94,3.02790913]
[1766710194054,0.7,119.97,119.94,3.02790913]
[1766710194752,0.7,119.97,119.94,0.72]
[1766710194952,0.7,119.97,119.93,10.64562186]
[1766710195154,0.7,119.97,119.94,2.30790913]
[1766710195466,0.7,119.97,119.94,11.36506247]
[1766710195660,15.92,119.98,119.95,2.30790913]
[1766710195857,12.74558209,120.0,119.95,2.30790913]
[1766710196053,13.44558209,120.0,119.96,3.02790913]
[1766710196561,0.7,119.98,119.95,0.72]
[1766710196785,0.7,119.98,119.94,11.36506247]
[1766710197355,0.7,119.98,119.95,10.6445654]
[1766710197572,0.7,119.98,119.95,11.3645654]
[1766710198475,0.7,119.98,119.95,3.02790913]
[1766710198851,0.7,119.98,119.95,11.36465237]
[1766710199252,0.7,119.98,119.94,2.30790913]
[1766710199545,0.7,119.98,119.94,3.02790913]
[1766710199747,0.7,119.98,119.94,11.36537795]
[1766710200873,0.7,119.98,119.94,3.02790913]
[1766710201079,0.7,119.98,119.92,36.06660692]
[1766710201080,0.7,119.98,119.95,3.02790913]
[1766710201766,10.43767296,119.99,119.96,2.30790913]
[1766710202079,2.30790913,120.01,119.94,29.18111601]
[1766710202374,0.7,120.01,119.98,2.30790913]
[1766710202549,0.7,120.01,119.96,0.72]
[1766710202969,0.7,120.0,119.96,3.02790913]
[1766710203359,0.7,120.0,119.96,2.30790913]
[1766710203560,0.7,119.99,119.96,2.30790913]
[1766710203857,0.7,120.01,119.97,3.02790913]
[1766710204290,0.7,120.01,119.98,2.30790913]
[1766710204575,0.7,120.01,119.98,3.02790913]
[1766710205073,0.7,120.01,119.98,11.36234855]
[1766710206370,15.92,120.03,119.99,3.02790913]
[1766710206685,15.92,120.03,120.0,3.02790913]
[1766710206984,0.7,120.03,120.0,11.3611536]
[1766710207159,0.7,120.03,120.01,2.30790913]
[1766710207360,0.7,120.04,120.01,3.02790913]
[1766710207553,0.7,120.05,120.02,2.30790913]
[1766710207881,0.7,120.05,120.01,3.02790913]
[1766710208090,0.7,120.05,120.02,0.72]
[1766710208298,0.7,120.05,120.01,2.30790913]
[1766710208472,0.7,120.05,120.01,3.02790913]
[1766710209190,26.75725897,120.06,120.02,0.72]
[1766710209397,0.7,120.05,120.01,3.02790913]
[1766710210080,3.00790913,120.05,120.01,3.02790913]
[1766710210278,0.7,120.04,120.01,3.02790913]
[1766710210691,0.7,120.04,120.01,0.72]
[1766710211594,0.7,120.04,120.01,3.02790913]
[1766710211807,0.7,120.04,120.01,11.36047228]
[1766710213978,15.42,120.06,120.02,2.97790913]
[1766710214277,0.87,120.06,120.02,0.67]
[1766710214595,0.87,120.06,120.02,2.97790913]
[1766710214976,0.87,120.06,120.02,11.30961817]
[1766710216889,0.87,120.06,120.03,0.67]
[1766710217314,2.97790913,120.04,120.0,0.67]
[1766710217474,2.30790913,120.02,119.98,2.30790913]
[1766710217786,2.97790913,120.02,119.98,0.67]
[1766710218303,2.97790913,120.02,119.99,0.67]
[1766710218506,13.41558209,120.03,119.99,0.67]
[1766710218809,10.43767296,120.03,120.0,0.67]
[1766710218989,10.43767296,120.03,120.01,0.67]
[1766710219508,2.30790913,120.04,120.01,0.67]
[1766710220405,2.97790913,120.04,120.01,0.67]
[1766710222497,0.67,120.03,120.0,0.67]
[1766710222700,0.67,120.01,119.96,36.05918748]
[1766710223013,0.67,120.01,119.97,2.97790913]
[1766710223405,0.67,120.01,119.98,0.67]
[1766710224018,0.67,120.01,119.98,2.97790913]
[1766710224220,0.67,120.01,119.98,11.31259071]
[1766710225316,0.67,120.01,119.98,2.97790913]
[1766710225496,0.67,120.01,119.97,11.3132224]
[1766710226012,0.67,120.02,119.98,11.31258644]
[1766710226602,2.97790913,120.02,119.98,2.97790913]
[1766710227020,0.67,120.02,119.98,10.64261094]
[1766710227200,0.67,120.02,119.99,0.67]
[1766710227400,0.67,120.02,119.99,2.97790913]
[1766710228820,0.67,120.03,119.99,2.97790913]
[1766710229721,0.67,120.03,119.99,11.31189405]
[1766710230022,0.67,120.03,119.99,12.60738714]
[1766710231222,0.67,120.03,120.0,0.67]
[1766710231719,0.67,120.04,120.0,4.27340222]
[1766710231924,10.43767296,120.05,120.0,0.67]
[1766710232122,0.2,120.06,120.04,4.27340222]
[1766710232495,0.2,120.06,120.04,0.67]
[1766710232804,0.2,120.06,120.04,4.27340222]
[1766710234626,0.2,120.06,120.04,12.60395842]
[1766710235592,0.67,120.08,120.05,4.27340222]
[1766710236704,0.2,120.09,120.06,4.27340222]
[1766710238124,0.2,120.09,120.06,12.60239984]
[1766710238538,0.2,120.09,120.07,4.27340222]
[1766710239502,0.1,120.1,120.08,4.27340222]
[1766710239821,0.1,120.1,120.08,3.60340222]
[1766710240630,0.1,120.1,120.07,4.27340222]
[1766710240932,0.1,120.1,120.07,12.6016934]
[1766710242227,0.76,120.1,120.07,12.6016934]
[1766710242909,0.76,120.1,120.07,4.27340222]
[1766710243226,0.76,120.1,120.06,11.93234617]
[1766710243403,0.76,120.1,120.07,8.32834714]
[1766710243608,0.76,120.1,120.07,12.62174936]
[1766710244530,0.76,120.1,120.06,3.60340222]
[1766710245404,0.7,120.09,120.06,3.60340222]
[1766710247738,0.7,120.09,120.06,11.9325249]
[1766710248736,0.7,120.09,120.05,3.60340222]
[1766710249037,0.7,120.09,120.05,4.29340222]
[1766710249229,0.7,120.09,120.05,12.62324915]
[1766710250736,0.7,120.09,120.06,3.60340222]
[1766710250932,0.7,120.09,120.05,9.01984693]
[1766710251129,0.7,120.09,120.05,12.62324915]
[1766710251639,0.7,120.09,120.06,3.60340222]
[1766710251841,0.7,120.09,120.06,11.93252227]
[1766710252533,0.7,120.09,120.06,12.62252227]
[1766710252832,0.7,120.09,120.07,3.60340222]
[1766710253039,0.8,120.1,120.07,11.93158455]
[1766710254843,0.8,120.1,120.07,12.62158455]
[1766710255553,0.1,120.1,120.08,3.60340222]
[1766710256871,0.1,120.1,120.08,11.93105348]
[1766710258034,5.30556563,120.12,120.1,0.69]
[1766710258247,5.30556563,120.12,120.11,3.60340222]
[1766710258638,0.2,120.14,120.11,4.29340222]
[1766710258844,0.9,120.14,120.11,4.29340222]
[1766710260156,0.2,120.14,120.11,11.92845372]
[1766710260364,0.1,120.17,120.13,3.60340222]
[1766710260551,0.1,120.19,120.16,3.60340222]
[1766710260752,0.1,120.19,120.14,15.2]
[1766710261059,0.7,120.18,120.15,3.60340222]
[1766710261747,3.60340222,120.17,120.12,18.80340222]
[1766710261953,0.7,120.16,120.12,3.60340222]
[1766710262256,0.7,120.16,120.12,11.9283369]
[1766710262659,0.7,120.16,120.13,3.60340222]
[1766710263543,0.7,120.16,120.12,11.9283369]
[1766710263750,0.7,120.16,120.12,8.32493468]
[1766710263942,0.7,120.16,120.12,11.9283369]
[1766710264345,0.7,120.16,120.12,8.32493468]
[1766710264543,8.32164779,120.17,120.11,8.32543511]
[1766710264741,0.7,120.16,120.11,8.73543511]
[1766710264969,0.7,120.16,120.12,3.60340222]
[1766710265474,0.7,120.16,120.12,4.01340222]
[1766710265961,0.7,120.15,120.11,33.15309093]
[1766710266162,0.7,120.14,120.11,8.32543511]
[1766710266673,0.7,120.13,120.1,8.32614703]
[1766710268859,0.7,120.13,120.1,12.33954925]
[1766710269266,3.60340222,120.16,120.11,3.60340222]
[1766710269449,113.020959,120.18,120.12,4.29340222]
[1766710269654,3.60340222,120.17,120.12,4.29340222]
[1766710270261,3.60340222,120.17,120.12,12.6182015]
[1766710270463,3.60340222,120.17,120.12,9.01479928]
[1766710270658,3.60340222,120.17,120.12,12.6182015]
[1766710271479,0.7,120.16,120.12,12.6182015]
[1766710271949,0.7,120.15,120.11,8.3254042]
[1766710272273,0.7,120.15,120.1,20.81598667]
[1766710272274,0.7,120.13,120.1,8.32625864]
[1766710273184,0.7,120.1,120.07,9.01806613]
[1766710273553,0.7,120.1,120.06,8.32892381]
[1766710273869,0.7,120.1,120.06,11.93232603]
[1766710275377,0.7,120.1,120.08,3.60340222]
[1766710275574,10.43767296,120.12,120.07,0.71]
[1766710275780,14.04107518,120.12,120.08,0.71]
[1766710275957,0.69,120.11,120.07,3.60340222]
[1766710276473,0.69,120.11,120.09,3.60340222]
[1766710276691,0.69,120.11,120.08,4.31340222]
[1766710277481,0.69,120.11,120.08,12.64092499]
[1766710278283,0.69,120.13,120.09,3.60340222]
[1766710278485,14.04107518,120.14,120.1,4.31340222]
[1766710278486,11.12767296,120.14,120.1,4.31340222]
[1766710280278,11.12767296,120.14,120.1,12.6395814]
[1766710280692,14.73107518,120.14,120.1,9.03617918]
[1766710280984,0.69,120.13,120.1,9.03617918]
[1766710283882,4.29340222,120.13,120.09,8.3265043]
[1766710284185,0.69,120.12,120.09,8.3265043]
[1766710285070,0.69,120.11,120.08,8.3275774]
[1766710285491,0.69,120.11,120.08,11.93097962]
[1766710285686,0.69,120.11,120.08,12.64097962]
[1766710286173,15.2,120.13,120.09,4.31340222]
[1766710286174,15.89,120.13,120.09,4.31340222]
[1766710286369,0.69,120.12,120.09,4.31340222]
[1766710286575,15.2,120.13,120.1,0.71]
[1766710286771,15.2,120.13,120.1,4.31340222]
[1766710287163,15.89,120.13,120.1,4.31340222]
[1766710287588,0.69,120.15,120.11,4.31340222]
[1766710287891,0.69,120.15,120.12,3.60340222]
[1766710288205,0.69,120.15,120.12,11.92834545]
[1766710290006,0.69,120.15,120.13,2.30107238]
[1766710290198,15.2,120.16,120.13,10.62534482]
[1766710290377,15.89,120.16,120.13,10.62534482]
[1766710290783,15.89,120.16,120.13,8.32427244]
[1766710290988,0.69,120.15,120.13,2.30107238]
[1766710292013,0.69,120.15,120.12,11.33578066]
[1766710292171,2.30107238,120.17,120.13,3.01107238]
[1766710292172,0.69,120.17,120.13,3.01107238]
[1766710292375,0.69,120.17,120.14,2.30107238]
[1766710292890,0.69,120.17,120.13,3.01107238]
[1766710293084,0.69,120.17,120.14,2.30107238]
[1766710297702,0.69,120.17,120.13,3.01107238]
[1766710297876,0.69,120.17,120.13,10.62536041]
[1766710298502,0.69,120.17,120.14,3.01107238]
[1766710299096,0.69,120.17,120.14,2.30107238]
[1766710300013,0.69,120.17,120.14,11.3344348]
[1766710301809,0.69,120.17,120.14,9.03336242]
[1766710302116,0.69,120.17,120.14,8.32336242]
[1766710302718,0.69,120.17,120.14,10.6244348]
[1766710305811,0.82,120.19,120.16,2.30107238]
[1766710306011,0.82,120.19,120.16,3.01107238]
[1766710307397,0.82,120.19,120.16,11.33330294]
[1766710307811,0.1,120.19,120.16,10.62330294]
[1766710308018,0.1,120.19,120.17,3.01107238]
[1766710308727,5.14588116,120.2,120.18,2.30107238]
[1766710308893,5.95024249,120.22,120.19,2.30107238]
[1766710309219,0.72,120.21,120.18,0.71]
[1766710309514,0.72,120.21,120.17,11.33231163]
[1766710310218,0.72,120.21,120.19,2.30107238]
[1766710311203,0.72,120.23,120.2,3.01107238]
[1766710311394,0.72,120.23,120.2,2.30107238]
[1766710312405,0.72,120.23,120.21,2.30107238]
[1766710312609,0.72,120.23,120.22,2.30107238]
[1766710313203,0.72,120.23,120.21,2.30107238]
[1766710314522,0.72,120.23,120.22,2.30107238]
[1766710314718,15.2,120.25,120.22,2.30107238]
[1766710315129,10.63767296,120.26,120.22,8.31800425]
[1766710315311,10.63767296,120.26,120.24,2.30107238]
[1766710316216,5.08806182,120.27,120.24,0.71]
[1766710316422,5.08806182,120.27,120.25,2.30107238]
[1766710316622,5.80806182,120.27,120.24,3.01107238]
[1766710317322,5.80806182,120.27,120.25,2.30107238]
[1766710317907,5.08806182,120.27,120.25,2.30107238]
[1766710318113,5.08806182,120.27,120.26,2.30107238]
[1766710318832,0.72,120.26,120.24,2.30107238]
[1766710319202,5.08806182,120.27,120.24,2.30107238]
[1766710319532,5.08806182,120.27,120.25,11.32707463]
[1766710320035,5.08806182,120.27,120.25,3.01107238]
[1766710320540,5.08806182,120.27,120.26,2.30107238]
[1766710320756,15.70105793,120.29,120.27,2.30107238]
[1766710321041,5.26338497,120.29,120.27,2.30107238]
[1766710321833,5.26338497,120.29,120.26,3.01107238]
[1766710322029,5.98338497,120.29,120.27,2.30107238]
[1766710322334,5.26338497,120.29,120.28,0.71]
[1766710323015,5.26338497,120.29,120.27,3.01107238]
[1766710325221,5.26338497,120.29,120.27,2.30107238]
[1766710325532,5.98338497,120.29,120.26,3.01107238]
[1766710326241,0.72,120.28,120.26,2.30107238]
[1766710327107,5.26338497,120.29,120.27,3.01107238]
[1766710327723,5.26338497,120.29,120.28,2.30107238]
[1766710328533,5.26338497,120.29,120.27,3.01107238]
[1766710330540,5.26338497,120.29,120.28,2.30107238]
[1766710330730,5.26338497,120.29,120.27,3.01107238]
[1766710331129,5.26338497,120.29,120.27,11.32568022]
[1766710331967,5.26338497,120.29,120.27,10.61568022]
[1766710333251,5.26338497,120.29,120.28,2.30107238]
[1766710336759,5.26338497,120.29,120.23,20.79291479]
[1766710336957,0.69,120.25,120.2,0.72]
[1766710337254,25.61767296,120.26,120.18,2.30107238]
[1766710337554,0.69,120.21,120.18,2.30107238]
[1766710337942,0.69,120.21,120.19,2.30107238]
[1766710338135,0.69,120.21,120.18,2.30107238]
[1766710338639,0.69,120.21,120.18,10.62187731]
[1766710339555,0.69,120.21,120.18,2.30107238]
[1766710340259,0.69,120.21,120.18,10.62184173]
[1766710340757,0.69,120.21,120.17,9.04135546]
[1766710340936,0.69,120.21,120.17,0.72]
[1766710341136,0.69,120.21,120.17,3.02107238]
[1766710341759,0.69,120.21,120.18,2.30107238]
[1766710343852,0.69,120.21,120.17,3.02107238]
[1766710344273,0.69,120.21,120.17,2.30107238]
[1766710344844,0.69,120.21,120.16,9.04201646]
[1766710344845,0.69,120.2,120.16,9.04201646]
[1766710345052,0.69,120.2,120.16,11.34308884]
[1766710346468,2.99107238,120.17,120.14,0.2]
[1766710346877,0.69,120.17,120.14,0.2]
[1766710347478,0.69,120.17,120.14,2.50107238]
[1766710348352,0.69,120.17,120.14,10.82468619]
[1766710350470,15.87,120.18,120.14,11.54468619]
[1766710351068,15.87,120.18,120.15,0.72]
[1766710351266,18.17107238,120.18,120.15,0.72]
[1766710351583,0.69,120.17,120.14,2.50107238]
[1766710351884,0.69,120.16,120.14,0.2]
[1766710356395,4.2857973,120.17,120.14,0.2]
[1766710356697,14.72347026,120.19,120.15,0.72]
[1766710357295,0.69,120.18,120.15,0.72]
[1766710358500,4.2857973,120.18,120.14,0.2]
[1766710358802,4.2857973,120.17,120.14,0.2]
[1766710359412,0.69,120.27,120.19,0.72]
[1766710359705,14.03347026,120.26,120.22,0.72]
[1766710360003,24.20503009,120.27,120.22,0.72]
[1766710360185,3.5957973,120.26,120.22,0.72]
[1766710361195,34.64270305,120.27,120.22,0.72]
[1766710361407,3.5957973,120.26,120.22,0.72]
[1766710361895,8.31560337,120.26,120.18,31.23841211]
[1766710362101,4.3157973,120.23,120.19,0.72]
[1766710362284,15.2,120.22,120.2,0.72]
[1766710363693,15.2,120.22,120.2,4.3157973]
[1766710363894,15.2,120.22,120.2,0.72]
[1766710364306,15.2,120.22,120.19,4.3157973]
[1766710365505,15.2,120.22,120.2,4.3157973]
[1766710366000,11.11767296,120.24,120.2,4.3157973]
[1766710366205,15.2,120.23,120.2,4.3157973]
[1766710367408,15.2,120.23,120.21,0.72]
[1766710367914,11.11767296,120.25,120.22,4.3157973]
[1766710368108,10.43767296,120.25,120.22,4.3157973]
[1766710369006,10.43767296,120.25,120.22,3.5957973]
[1766710369207,0.68,120.24,120.22,3.5957973]
[1766710370612,0.68,120.24,120.21,0.72]
[1766710370790,0.68,120.24,120.22,3.5957973]
[1766710373515,0.68,120.24,120.19,8.31993361]
[1766710373718,0.58,120.22,120.18,8.32056568]
[1766710373899,0.58,120.22,120.2,3.5957973]
[1766710375313,0.58,120.22,120.2,3.4957973]
[1766710377110,8.89822035,120.22,120.16,8.32194025]
[1766710377312,3.5957973,120.2,120.17,0.72]
[1766710377497,15.2,120.19,120.17,0.72]
[1766710377703,15.2,120.19,120.16,3.5957973]
[1766710378002,15.2,120.19,120.17,3.5957973]
[1766710379621,15.2,120.19,120.17,4.3157973]
[1766710379915,0.48,120.21,120.18,3.5957973]
[1766710380117,15.2,120.21,120.19,4.3157973]
[1766710380508,8.79777481,120.23,120.19,4.3157973]
[1766710380709,15.68,120.22,120.19,4.3157973]
[1766710382131,15.68,120.22,120.19,3.5957973]
[1766710382725,0.48,120.22,120.18,0.72]
[1766710382925,15.68,120.22,120.18,4.3157973]
[1766710383127,15.68,120.22,120.19,3.5957973]
[1766710383433,15.68,120.22,120.18,4.3157973]
[1766710385708,15.68,120.22,120.19,3.5957973]
[1766710387518,15.68,120.22,120.18,0.72]
[1766710387723,15.68,120.22,120.18,4.3157973]
[1766710388634,19.2757973,120.22,120.18,4.3157973]
[1766710389327,12.39357211,120.23,120.19,0.72]
[1766710389533,15.2,120.21,120.19,0.72]
[1766710389721,15.2,120.22,120.2,0.72]
[1766710391641,15.2,120.22,120.19,3.5957973]
[1766710391816,15.2,120.22,120.19,4.3157973]
[1766710392421,15.2,120.22,120.2,4.3157973]
[1766710393321,15.2,120.22,120.2,3.5957973]
[1766710393522,15.2,120.22,120.21,0.72]
[1766710393822,10.91767296,120.27,120.22,0.67]
[1766710394022,20.78131292,120.26,120.23,4.2657973]
[1766710394256,15.2,120.26,120.23,4.2657973]
[1766710394942,15.2,120.26,120.23,3.5957973]
[1766710395125,15.2,120.26,120.24,4.2657973]
[1766710395837,15.2,120.26,120.24,0.67]
[1766710396160,15.2,120.26,120.24,4.2657973]
[1766710398423,105.18,120.28,120.24,4.2657973]
[1766710398624,120.38,120.28,120.24,4.2657973]
[1766710399148,120.38,120.28,120.25,0.67]
[1766710399321,120.38,120.28,120.25,0.619]
[1766710400647,123.9757973,120.28,120.25,0.619]
[1766710400851,0.53,120.27,120.23,11.91318887]
[1766710401151,0.53,120.27,120.24,3.5957973]
[1766710401323,0.53,120.27,120.24,4.2657973]
[1766710401725,0.53,120.27,120.23,0.67]
[1766710402053,0.53,120.27,120.23,4.2657973]
[1766710402252,0.53,120.27,120.24,0.67]
[1766710402954,15.73,120.27,120.24,0.67]
[1766710403256,15.73,120.27,120.24,0.61900001]
[1766710404048,15.73,120.27,120.24,0.56800002]
[1766710405472,3.5957973,120.25,120.21,3.5957973]
[1766710405668,0.63,120.24,120.21,3.5957973]
[1766710405866,10.43767296,120.26,120.21,3.5957973]
[1766710405867,0.63,120.25,120.21,3.5957973]
[1766710406066,0.63,120.25,120.21,4.2657973]
[1766710406660,15.18,120.24,120.22,0.67]
[1766710408377,15.18,120.24,120.21,4.2657973]
[1766710412960,15.81,120.24,120.21,0.67]
[1766710413466,15.81,120.24,120.21,0.61900001]
[1766710413861,15.89,120.25,120.21,3.5957973]
[1766710414057,18.18795624,120.25,120.21,2.29795624]
[1766710414384,5.58309828,120.24,120.21,2.29795624]
[1766710415493,5.58309828,120.24,120.21,2.96795624]
[1766710415703,18.18795624,120.25,120.21,2.96795624]
[1766710416196,26.50407292,120.25,120.21,2.96795624]
[1766710416596,15.2,120.25,120.22,2.29795624]
[1766710416793,10.43767296,120.25,120.23,0.67]
[1766710419476,25.63767296,120.27,120.24,0.67]
[1766710419681,5.58361357,120.26,120.24,2.96795624]
[1766710419982,15.2,120.27,120.24,2.96795624]
[1766710420188,15.2,120.27,120.25,0.67]
[1766710422525,18.18795624,120.27,120.24,0.67]
[1766710422838,2.98795624,120.26,120.22,2.96795624]
[1766710424232,25.81293001,120.27,120.24,0.66]
[1766710424401,5.58727838,120.26,120.24,0.66]
[1766710424906,26.50293001,120.27,120.23,2.29795624]
[1766710424907,26.50293001,120.27,120.23,2.95795624]
[1766710425616,5.58737871,120.26,120.23,2.95795624]
[1766710428211,2.98795624,120.25,120.21,3.01795624]
[1766710429131,0.69,120.25,120.22,0.72]
[1766710429539,10.6137215,120.26,120.22,2.29795624]
[1766710429744,5.59423911,120.25,120.23,0.72]
[1766710430025,5.59423911,120.25,120.2,8.31930764]
[1766710430026,5.59423911,120.25,120.21,0.72]
[1766710430332,5.59423911,120.25,120.22,3.01795624]
[1766710431911,120.59,120.27,120.24,0.72]
[1766710432230,5.59593844,120.26,120.24,0.72]
[1766710433376,5.26338497,120.29,120.22,10.43767296]
[1766710433506,0.69,120.28,120.24,8.31668305]
[1766710433840,0.69,120.28,120.24,2.29795624]
[1766710434018,0.69,120.27,120.23,10.61511358]
[1766710434204,0.69,120.27,120.24,2.29795624]
[1766710434401,0.69,120.27,120.25,2.29795624]
[1766710434613,15.18,120.28,120.25,2.29795624]
[1766710435334,15.87,120.28,120.25,2.29795624]
[1766710439642,0.69,120.28,120.25,2.29795624]
[1766710441045,5.26338497,120.29,120.25,2.29795624]
[1766710441228,5.95338497,120.29,120.25,2.29795624]
[1766710441429,5.95338497,120.29,120.26,2.29795624]
[1766710443466,0.69,120.28,120.26,2.29795624]
[1766710443641,0.69,120.28,120.24,2.29795624]
[1766710443957,0.69,120.27,120.24,2.29795624]
[1766710444324,0.69,120.26,120.23,2.29795624]
[1766710445445,0.69,120.26,120.23,10.61534516]
[1766710446163,0.69,120.26,120.24,2.29795624]
[1766710446462,15.18,120.27,120.25,2.29795624]
[1766710446747,15.87,120.27,120.24,2.29795624]
[1766710447425,15.18,120.27,120.25,2.29795624]
[1766710447630,21.13338497,120.29,120.25,2.29795624]
[1766710448138,0.69,120.28,120.25,2.29795624]
[1766710449228,20.44338497,120.29,120.26,2.29795624]
[1766710449436,21.13338497,120.29,120.26,2.29795624]
[1766710450854,21.13338497,120.29,120.25,10.61387783]
[1766710452357,21.13338497,120.29,120.26,2.29795624]